bitfinex/quotes_BTCUSD_20260215
["timestamp","ask_amount","ask_price","bid_price","bid_amount"]
[1771138612673,0.0710188,70404.0,70401.0,0.0002]
[1771138613299,0.0710169,70406.0,70401.0,0.0002]
[1771138613491,0.09424438,70406.0,70401.0,0.0002]
[1771138613917,0.0710169,70406.0,70401.0,0.0002]
[1771138616426,0.34028,70408.0,70401.0,0.0002]
[1771138616766,0.07101566,70407.0,70401.0,0.0002]
[1771138616940,0.36350748,70408.0,70401.0,0.0002]
[1771138617471,0.07101725,70406.0,70401.0,0.0002]
[1771138617845,0.07101566,70407.0,70401.0,0.0002]
[1771138618051,0.07101566,70407.0,70401.0,0.07122166]
[1771138619477,0.07101566,70407.0,70401.0,0.0710709]
[1771138621348,0.07101566,70407.0,70402.0,0.21813606]
[1771138621696,0.07101566,70407.0,70403.0,0.24100151]
[1771138621923,0.07101566,70407.0,70401.0,4.924e-05]
[1771138622079,0.07101839,70405.0,70401.0,4.924e-05]
[1771138622665,0.07101868,70406.0,70401.0,4.924e-05]
[1771138623036,0.07101578,70407.0,70401.0,4.924e-05]
[1771138624187,0.07101578,70407.0,70401.0,0.2181853]
[1771138624385,0.34028,70408.0,70401.0,0.2181853]
[1771138624589,0.0004,70414.0,70401.0,4.924e-05]
[1771138624788,0.07100622,70417.0,70412.0,0.02286545]
[1771138625448,0.0004,70415.0,70412.0,0.02286545]
[1771138625806,0.0004,70415.0,70414.0,0.09387405]
[1771138626182,0.0004,70415.0,70414.0,0.02286545]
[1771138629419,0.0004,70415.0,70414.0,0.02136772]
[1771138631578,0.0004,70415.0,70409.0,0.09387883]
[1771138631876,0.0004,70415.0,70410.0,0.07101261]
[1771138632175,0.0004,70415.0,70411.0,0.02286545]
[1771138638517,0.00012,70420.0,70415.0,0.07100661]
[1771138638831,0.00012,70420.0,70407.0,0.34028]
[1771138638832,0.07112317,70420.0,70416.0,0.02449223]
[1771138639033,0.00012,70420.0,70416.0,0.02449223]
[1771138639269,0.00012,70420.0,70418.0,0.09549609]
[1771138640049,0.00012,70420.0,70418.0,0.02449223]
[1771138640675,0.00012,70420.0,70419.0,0.02449223]
[1771138641995,0.07100439,70419.0,70416.0,0.34024]
[1771138642156,0.00012,70420.0,70416.0,0.34024]
[1771138642358,0.07100528,70418.0,70416.0,0.34024]
[1771138642778,0.07100558,70417.0,70416.0,0.34024]
[1771138642991,0.07100492,70418.0,70416.0,0.34024]
[1771138644578,0.00012,70420.0,70411.0,0.34044]
[1771138644781,0.00012,70420.0,70411.0,0.41145134]
[1771138644782,0.07100593,70417.0,70411.0,0.41145134]
[1771138645095,0.0710055,70418.0,70411.0,0.41145134]
[1771138645451,0.07100578,70417.0,70411.0,0.34044]
[1771138645861,0.07100622,70417.0,70411.0,0.34044]
[1771138647090,0.07100381,70419.0,70412.0,0.07101025]
[1771138647290,0.00012,70420.0,70416.0,0.07100604]
[1771138647472,0.00012,70420.0,70417.0,0.02449223]
[1771138648298,0.00012,70420.0,70418.0,0.02449223]
[1771138650208,0.00012,70420.0,70418.0,0.07100456]
[1771138650412,0.00012,70420.0,70419.0,0.02449223]
[1771138651254,0.0005378,70423.0,70419.0,0.071003]
[1771138651502,0.0005378,70423.0,70419.0,0.02449223]
[1771138651649,0.0005378,70423.0,70418.0,0.07100385]
[1771138653725,0.0005378,70423.0,70418.0,0.0708531]
[1771138653924,0.0005378,70423.0,70419.0,0.07100333]
[1771138654066,0.0005378,70423.0,70419.0,0.07085259]
[1771138654484,0.0004,70420.0,70419.0,0.07085259]
[1771138654687,0.0004,70420.0,70418.0,0.09534533]
[1771138658541,0.0004,70420.0,70419.0,0.07100356]
[1771138658798,0.07112949,70431.0,70416.0,0.28402458]
[1771138659060,0.07112949,70431.0,70415.0,0.0002]
[1771138659061,0.0001378,70439.0,70415.0,0.0002]
[1771138659062,0.02476098,70442.0,70423.0,0.02449223]
[1771138659291,0.07098617,70437.0,70430.0,0.36764728]
[1771138659492,0.07098617,70437.0,70430.0,0.07099201]
[1771138659722,0.07098617,70437.0,70429.0,0.07099305]
[1771138660380,0.07107243,70437.0,70430.0,0.07099217]
[1771138661214,0.07098644,70436.0,70430.0,0.07099217]
[1771138661774,0.07107239,70437.0,70430.0,0.07099067]
[1771138661977,0.07098646,70436.0,70430.0,0.07099067]
[1771138662196,0.07107168,70437.0,70431.0,0.07099135]
[1771138662397,0.07098649,70436.0,70429.0,0.07099269]
[1771138663597,0.07098649,70436.0,70430.0,0.07099228]
[1771138664014,0.00048626,70437.0,70430.0,0.07099228]
[1771138664212,0.00048626,70437.0,70430.0,0.02465631]
[1771138664436,0.07098647,70436.0,70430.0,0.02465631]
[1771138664645,0.07098772,70435.0,70428.0,0.07099261]
[1771138664853,0.07098647,70436.0,70427.0,0.36764885]
[1771138664854,0.07098647,70436.0,70429.0,0.07099326]
[1771138665485,0.07098647,70436.0,70430.0,0.07099216]
[1771138666067,0.07147185,70437.0,70431.0,0.0709914]
[1771138666232,0.00048626,70437.0,70431.0,0.0709914]
[1771138666679,0.07147193,70437.0,70431.0,0.0709914]
[1771138667027,0.07147193,70437.0,70431.0,0.07084065]
[1771138667592,0.07098683,70436.0,70429.0,0.07099284]
[1771138668330,0.07147193,70437.0,70430.0,0.07099168]
[1771138668530,0.07098663,70436.0,70429.0,0.07099331]
[1771138668907,0.07098642,70436.0,70429.0,0.06976139]
[1771138670951,0.07138642,70436.0,70429.0,0.06976139]
[1771138672153,0.0004,70436.0,70430.0,0.07099176]
[1771138672357,0.0004,70436.0,70427.0,0.02465631]
[1771138672814,0.0004,70436.0,70429.0,0.0709929]
[1771138673222,0.0004,70436.0,70431.0,0.0709907]
[1771138675148,0.0004,70436.0,70432.0,0.07099027]
[1771138675628,0.0004,70436.0,70432.0,0.07099016]
[1771138676397,0.0004,70437.0,70432.0,0.07099016]
[1771138676624,0.56713994,70506.0,70430.0,0.02477631]
[1771138676625,0.0004,70445.0,70430.0,0.02477631]
[1771138676819,0.0004,70445.0,70432.0,0.07098963]
[1771138676820,0.0709837,70439.0,70432.0,0.07098963]
[1771138677259,0.07098419,70440.0,70430.0,0.02477631]
[1771138677456,0.07098419,70440.0,70432.0,0.07098848]
[1771138677684,0.07098164,70441.0,70434.0,0.07098766]
[1771138678263,0.07098275,70440.0,70434.0,0.07098766]
[1771138679711,0.07098275,70440.0,70433.0,0.07098766]
[1771138680489,0.0713836,70439.0,70433.0,0.07098766]
[1771138680700,0.0004,70439.0,70431.0,0.07099128]
[1771138680910,0.07098534,70438.0,70431.0,0.07099078]
[1771138681089,0.07098534,70438.0,70432.0,0.07099032]
[1771138684268,0.07098754,70435.0,70430.0,0.00012]
[1771138684466,0.30129986,70433.0,70426.0,0.0709965]
[1771138684693,0.02253067,70432.0,70423.0,0.07099953]
[1771138684835,0.02253067,70432.0,70421.0,0.07120056]
[1771138685041,0.27877255,70429.0,70419.0,0.0002]
[1771138685240,0.02253067,70428.0,70421.0,0.07100077]
[1771138685451,0.02253067,70428.0,70422.0,0.07100009]
[1771138685631,0.02253067,70427.0,70421.0,0.07100077]
[1771138686042,0.09352627,70427.0,70420.0,0.07112217]
[1771138686245,0.07099809,70425.0,70420.0,0.00012]
[1771138686443,0.02253067,70425.0,70420.0,0.00012]
[1771138686846,0.02253067,70425.0,70420.0,0.07112186]
[1771138687049,0.02253067,70425.0,70420.0,0.00012]
[1771138687248,0.02253067,70425.0,70421.0,0.07100145]
[1771138687844,0.02253067,70425.0,70420.0,0.00012]
[1771138688048,0.07099867,70424.0,70420.0,0.00012]
[1771138689550,0.07099966,70423.0,70420.0,0.00012]
[1771138689764,0.07100052,70423.0,70420.0,0.00032]
[1771138690261,0.07099853,70424.0,70420.0,0.00032]
[1771138690994,0.09353013,70425.0,70420.0,0.00032]
[1771138691208,0.07099852,70424.0,70420.0,0.00032]
[1771138691412,0.07099959,70423.0,70420.0,0.00016927]
[1771138692047,0.09353013,70425.0,70408.0,0.0001312]
[1771138692048,0.20777907,70424.0,70408.0,0.0001312]
[1771138692248,0.07100451,70419.0,70412.0,0.07121005]
[1771138692450,0.07100154,70421.0,70412.0,0.0002]
[1771138692637,0.09353152,70422.0,70414.0,0.07100823]
[1771138692836,0.07100085,70422.0,70414.0,0.07100823]
[1771138693991,0.07100085,70422.0,70415.0,0.07100752]
[1771138694647,0.62415248,70425.0,70412.0,0.0002]
[1771138694648,0.34016,70425.0,70418.0,0.02304458]
[1771138694851,0.34016,70425.0,70419.0,0.07100356]
[1771138695239,0.41115774,70425.0,70418.0,0.09404851]
[1771138696258,0.34016,70425.0,70419.0,0.07100333]
[1771138698937,0.41115763,70425.0,70419.0,0.07100333]
[1771138702323,0.41115763,70425.0,70418.0,0.0712043]
[1771138703288,0.07099763,70425.0,70418.0,0.0712043]
[1771138703498,0.07099763,70425.0,70420.0,0.02304458]
[1771138703693,0.07099713,70426.0,70419.0,0.07100324]
[1771138703868,0.07099713,70426.0,70420.0,0.07100253]
[1771138704454,0.07099713,70426.0,70419.0,0.07100319]
[1771138705462,0.07099612,70427.0,70420.0,0.07100244]
[1771138705663,0.07099449,70428.0,70420.0,0.07100244]
[1771138705664,0.07099661,70426.0,70420.0,0.07100244]
[1771138705864,0.07099584,70427.0,70420.0,0.07100244]
[1771138706595,0.0709971,70426.0,70419.0,0.07100172]
[1771138706882,0.0709971,70426.0,70419.0,0.07100319]
[1771138707101,0.00741797,70429.0,70419.0,0.28401281]
[1771138707267,0.07847987,70429.0,70422.0,0.07099978]
[1771138708101,0.00748569,70429.0,70423.0,0.0709993]
[1771138708303,0.00748569,70429.0,70423.0,0.09404388]
[1771138708537,0.07847922,70429.0,70424.0,0.02304458]
[1771138709260,0.00748569,70429.0,70424.0,0.02304458]
[1771138709552,0.07847958,70429.0,70424.0,0.02304458]
[1771138713894,0.07106161,70429.0,70422.0,0.07099999]
[1771138714094,0.07099555,70427.0,70421.0,0.07099982]
[1771138714302,0.07099555,70427.0,70420.0,0.09404687]
[1771138714489,0.07099555,70427.0,70421.0,0.0710014]
[1771138714712,0.07106157,70429.0,70422.0,0.07100053]
[1771138715115,0.07099552,70427.0,70420.0,0.09404677]
[1771138715324,0.07099668,70426.0,70420.0,0.09404677]
[1771138716355,0.00012,70440.0,70421.0,0.07100154]
[1771138716514,0.00012,70440.0,70434.0,0.07098768]
[1771138716718,0.00012,70440.0,70435.0,0.07098694]
[1771138716918,0.00012,70440.0,70435.0,0.07098727]
[1771138717642,0.0006982,70440.0,70435.0,0.07098727]
[1771138718141,0.0006982,70440.0,70436.0,0.07098629]
[1771138718363,0.0006982,70440.0,70437.0,0.07098475]
[1771138718677,0.0006982,70440.0,70437.0,0.07098538]
[1771138718877,0.0006982,70440.0,70436.0,0.07098629]
[1771138719025,0.00046308,70439.0,70436.0,0.07098629]
[1771138719227,0.0004,70437.0,70436.0,0.07098629]
[1771138719442,0.0008459,70437.0,70436.0,0.07098629]
[1771138723252,0.0008459,70437.0,70434.0,0.07098818]
[1771138723475,0.0008459,70437.0,70436.0,0.07098579]
[1771138725144,0.0008459,70437.0,70435.0,0.07098719]
[1771138735993,0.0008459,70437.0,70436.0,0.07098642]
[1771138736522,0.0008459,70437.0,70435.0,0.07098698]
[1771138736936,0.0008459,70437.0,70436.0,0.07098642]
[1771138740914,0.0008459,70437.0,70435.0,0.07098698]
[1771138742575,0.0008459,70437.0,70429.0,0.07099319]
[1771138742576,0.07098743,70435.0,70429.0,0.07099319]
[1771138742782,0.09582416,70436.0,70429.0,0.07099267]
[1771138742978,0.07098798,70435.0,70429.0,0.07099267]
[1771138743188,0.02483774,70435.0,70429.0,0.07099267]
[1771138743784,0.02528364,70435.0,70429.0,0.07099267]
[1771138743985,0.02528364,70435.0,70430.0,0.07099242]
[1771138744632,0.0004459,70435.0,70424.0,0.28399307]
[1771138744850,0.0004459,70435.0,70433.0,0.07098873]
[1771138749915,0.0004459,70435.0,70433.0,0.07118873]
[1771138752112,0.0004459,70435.0,70433.0,0.0002]
[1771138753129,0.0004459,70435.0,70433.0,0.0711892]
[1771138758923,0.0008459,70435.0,70433.0,0.0711892]
[1771138761018,0.0008859,70435.0,70433.0,0.0711892]
[1771138765173,0.0008859,70435.0,70433.0,0.0002]
[1771138765590,0.0008859,70435.0,70433.0,0.07118907]
[1771138772320,0.0008859,70435.0,70433.0,0.0002]
[1771138773258,0.0008859,70435.0,70433.0,0.07118914]
[1771138777363,0.0008859,70435.0,70433.0,0.0002]
[1771138778986,0.00044,70435.0,70433.0,0.0002]
[1771138786490,0.02403214,70435.0,70433.0,0.0002]
[1771138787251,0.00044,70435.0,70433.0,0.0002]
[1771138794894,0.00044,70435.0,70433.0,0.07118933]
[1771138800900,0.00044,70435.0,70425.0,0.0002]
[1771138801019,0.02359214,70432.0,70425.0,0.07119691]
[1771138801224,0.02359214,70431.0,70425.0,0.0002]
[1771138801455,0.02359214,70430.0,70425.0,0.0002]
[1771138801662,0.09458529,70430.0,70425.0,0.0002]
[1771138802372,0.07099315,70430.0,70425.0,0.0002]
[1771138804390,0.07099618,70427.0,70425.0,0.0002]
[1771138804584,0.0945879,70427.0,70422.0,0.0002]
[1771138804796,0.02359214,70427.0,70422.0,0.0002]
[1771138805200,0.07099362,70429.0,70422.0,0.07119986]
[1771138805861,0.07099362,70429.0,70423.0,0.07099948]
[1771138806382,0.41115124,70432.0,70428.0,0.0709937]
[1771138806383,0.34016,70432.0,70428.0,0.0709937]
[1771138806590,0.00044,70435.0,70429.0,0.07099248]
[1771138806791,0.00044,70435.0,70428.0,0.0236705]
[1771138806792,0.07098885,70434.0,70428.0,0.0236705]
[1771138806999,0.07142762,70435.0,70428.0,0.09466459]
[1771138808128,0.07142762,70435.0,70429.0,0.07099334]
[1771138808800,0.0001276,70436.0,70432.0,0.07098946]
[1771138809446,0.0004,70437.0,70433.0,0.0236705]
[1771138813104,0.0004,70436.0,70433.0,0.0236705]
[1771138814238,0.00012,70440.0,70433.0,0.02336168]
[1771138814439,0.00012,70440.0,70434.0,0.09435012]
[1771138814638,0.00012,70440.0,70436.0,0.0709862]
[1771138819847,0.00012,70440.0,70436.0,0.07083573]
[1771138820336,0.00012,70440.0,70430.0,0.29655815]
[1771138820507,0.00012,70440.0,70411.0,0.0002]
[1771138820508,0.2007062,70429.0,70412.0,0.0003257]
[1771138820708,0.07099966,70423.0,70413.0,0.28426288]
[1771138820913,0.07100073,70422.0,70413.0,0.30762456]
[1771138821453,0.07100073,70422.0,70413.0,0.28426288]
[1771138821664,0.07100073,70422.0,70414.0,0.0002]
[1771138821839,0.07100759,70415.0,70414.0,0.0002]
[1771138822181,0.07100662,70416.0,70414.0,0.0002]
[1771138822789,0.07100619,70417.0,70414.0,0.0002]
[1771138823165,0.07100457,70418.0,70414.0,0.0002]
[1771138823316,0.07100388,70419.0,70414.0,0.0002]
[1771138823515,0.07100388,70419.0,70414.0,0.02356168]
[1771138823944,0.07100287,70420.0,70414.0,0.02356168]
[1771138824138,0.0710039,70419.0,70414.0,0.02356168]
[1771138824565,0.07100457,70418.0,70414.0,0.0002]
[1771138824916,0.07100457,70418.0,70413.0,0.28426288]
[1771138824917,0.07100457,70418.0,70413.0,0.18057378]
[1771138825343,0.07100457,70418.0,70412.0,0.0003257]
[1771138825548,0.07100365,70419.0,70413.0,0.18057378]
[1771138826647,0.07100365,70419.0,70413.0,0.1802729]
[1771138827650,0.07100294,70420.0,70413.0,0.1802729]
[1771138828277,0.07100358,70419.0,70413.0,0.1802729]
[1771138828536,0.07100358,70419.0,70414.0,0.0002]
[1771138828733,0.07100358,70419.0,70414.0,0.02356168]
[1771138829422,0.62414022,70428.0,70414.0,0.02356168]
[1771138829583,0.07100474,70418.0,70414.0,0.02356168]
[1771138832344,0.07100437,70419.0,70415.0,0.1802729]
[1771138832483,0.0705233,70419.0,70415.0,0.1802729]
[1771138833498,0.07100466,70418.0,70415.0,0.1802729]
[1771138835069,0.07100466,70418.0,70415.0,0.0496758]
[1771138835070,0.07100592,70417.0,70415.0,0.0496758]
[1771138835652,0.07100592,70417.0,70414.0,0.0002]
[1771138835852,0.07100592,70417.0,70414.0,0.0498758]
[1771138838209,0.071005,70418.0,70414.0,0.0498758]
[1771138838551,0.07100571,70417.0,70414.0,0.0498758]
[1771138839205,0.29673254,70424.0,70412.0,0.0003257]
[1771138839206,0.07100961,70413.0,70412.0,0.0003257]
[1771138839407,0.29673254,70424.0,70403.0,1e-08]
[1771138839408,0.02370357,70418.0,70403.0,1e-08]
[1771138839578,0.28405347,70410.0,70403.0,1e-08]
[1771138839778,0.07101523,70408.0,70403.0,1e-08]
[1771138839995,0.07101843,70405.0,70403.0,1e-08]
[1771138841249,0.07101691,70406.0,70403.0,0.00043384]
[1771138841542,0.07101799,70405.0,70403.0,0.00043384]
[1771138843014,0.07101691,70406.0,70403.0,0.00043384]
[1771138843672,0.07101796,70405.0,70403.0,0.00043384]
[1771138843999,0.07101869,70404.0,70403.0,0.00043384]
[1771138845772,0.07101869,70404.0,70403.0,1e-08]
[1771138847385,0.07101869,70404.0,70400.0,0.00032]
[1771138847386,0.07102048,70403.0,70401.0,0.15536723]
[1771138847588,0.07102048,70403.0,70401.0,0.15541063]
[1771138848573,0.0710207,70402.0,70401.0,4.34e-05]
[1771138850645,0.07102048,70403.0,70401.0,4.34e-05]
[1771138851579,0.0710207,70402.0,70401.0,9.302e-05]
[1771138851836,0.02421559,70401.0,70398.0,0.0001257]
[1771138852059,0.02421559,70401.0,70398.0,4.34e-05]
[1771138852492,0.0710207,70402.0,70398.0,4.34e-05]
[1771138854019,0.07102011,70403.0,70398.0,4.34e-05]
[1771138854465,0.07102087,70402.0,70398.0,4.34e-05]
[1771138855385,0.07101993,70403.0,70395.0,0.07122587]
[1771138855575,0.07101993,70403.0,70396.0,0.07102676]
[1771138855987,0.07102103,70402.0,70396.0,0.07102676]
[1771138856183,0.07101993,70403.0,70396.0,0.07102676]
[1771138856392,0.07102081,70402.0,70396.0,0.07102676]
[1771138857155,0.09523549,70403.0,70396.0,0.07102676]
[1771138857381,0.07102139,70402.0,70395.0,0.07122587]
[1771138857592,0.07102173,70401.0,70395.0,0.07122587]
[1771138858209,0.07102157,70402.0,70395.0,0.07122587]
[1771138858408,0.0710207,70402.0,70395.0,0.07122587]
[1771138858719,0.0710225,70401.0,70395.0,0.0002]
[1771138858926,0.0710225,70401.0,70398.0,0.0002]
[1771138859061,0.02421559,70399.0,70398.0,0.0002]
[1771138860096,0.09523932,70399.0,70398.0,0.0002]
[1771138860620,0.07102373,70399.0,70398.0,0.0002]
[1771138860870,0.0004,70403.0,70398.0,0.07122473]
[1771138861071,0.0004,70403.0,70399.0,0.09578006]
[1771138861205,0.0004,70403.0,70400.0,0.02475638]
[1771138861598,0.0004,70417.0,70409.0,0.07101364]
[1771138861793,4.338e-05,70415.0,70407.0,0.02475638]
[1771138862147,4.338e-05,70415.0,70410.0,0.0710125]
[1771138862347,4.338e-05,70415.0,70411.0,0.02475638]
[1771138862553,0.0004,70418.0,70411.0,0.07101095]
[1771138862729,0.07100387,70419.0,70412.0,0.07100994]
[1771138862936,0.07100387,70419.0,70413.0,0.02475638]
[1771138863105,0.07100522,70418.0,70413.0,0.19761692]
[1771138863300,0.07100522,70418.0,70414.0,0.02475638]
[1771138863720,0.07112449,70420.0,70414.0,0.02475638]
[1771138864582,0.07100527,70418.0,70414.0,0.02475638]
[1771138866158,0.07100563,70417.0,70414.0,0.02475638]
[1771138866589,0.07100563,70417.0,70410.0,0.09576896]
[1771138867608,0.07100563,70417.0,70410.0,0.02475638]
[1771138867609,0.0710066,70416.0,70410.0,0.02475638]
[1771138869215,0.0710066,70416.0,70409.0,0.0710136]
[1771138869897,0.07100563,70417.0,70410.0,0.07101205]
[1771138870244,0.07100563,70417.0,70411.0,0.07101159]
[1771138871213,0.07100563,70417.0,70409.0,0.0710136]
[1771138871426,0.07100723,70416.0,70409.0,0.0710136]
[1771138872025,0.07100723,70416.0,70410.0,0.07101253]
[1771138872359,0.07100563,70417.0,70410.0,0.07101253]
[1771138874135,0.07100563,70417.0,70409.0,0.07101186]
[1771138874136,0.07100563,70417.0,70411.0,0.07101154]
[1771138874382,0.07140472,70418.0,70411.0,0.07101154]
[1771138874567,0.0004,70418.0,70413.0,0.07100919]
[1771138874776,0.00083413,70418.0,70413.0,0.07100919]
[1771138874951,0.00083413,70418.0,70412.0,0.07101041]
[1771138875739,0.0004,70417.0,70412.0,0.07101041]
[1771138876487,0.07140588,70417.0,70410.0,0.07101217]
[1771138876686,0.0710066,70416.0,70410.0,0.07101217]
[1771138877291,0.07140591,70417.0,70410.0,0.07101217]
[1771138877487,0.07140591,70417.0,70411.0,0.07101137]
[1771138877844,0.07140591,70417.0,70410.0,0.07101217]
[1771138878729,0.07140591,70417.0,70411.0,0.07101136]
[1771138879600,0.0004,70417.0,70411.0,0.07101136]
[1771138880306,0.0004,70417.0,70412.0,0.07101058]
[1771138881700,0.0004,70417.0,70411.0,0.07101134]
[1771138882591,0.07140563,70417.0,70411.0,0.07101134]
[1771138882925,0.07140563,70417.0,70410.0,0.07101222]
[1771138883127,0.07140563,70417.0,70412.0,0.0002]
[1771138883625,0.0004,70417.0,70412.0,0.0002]
[1771138884052,0.0004,70417.0,70412.0,0.07121062]
[1771138884825,0.0004,70417.0,70412.0,0.0002]
[1771138885348,0.0004,70417.0,70410.0,0.02572491]
[1771138885558,0.0004,70417.0,70412.0,0.07100991]
[1771138886082,0.0004,70417.0,70411.0,0.07100991]
[1771138886914,0.0004,70417.0,70409.0,0.07101322]
[1771138887133,0.0004,70417.0,70407.0,0.02311275]
[1771138887334,0.07101022,70413.0,70407.0,0.02311275]
[1771138887720,0.0710085,70415.0,70408.0,0.07101452]
[1771138888044,0.07100862,70414.0,70408.0,0.07101452]
[1771138889899,0.07100862,70414.0,70407.0,0.09412658]
[1771138890493,0.02283222,70414.0,70400.0,0.00012]
[1771138890766,0.07101667,70406.0,70400.0,0.00012]
[1771138890930,0.02283222,70406.0,70400.0,0.00012]
[1771138891175,0.09384948,70406.0,70400.0,0.00012]
[1771138891354,0.07101772,70405.0,70400.0,0.00032]
[1771138892607,0.0708757,70405.0,70400.0,0.00032]
[1771138893272,0.07101878,70404.0,70400.0,0.00032]
[1771138894853,0.07102171,70401.0,70400.0,0.00032]
[1771138896056,0.07102171,70401.0,70393.0,0.09434228]
[1771138896057,0.29685254,70410.0,70393.0,0.0002]
[1771138896203,0.07102845,70395.0,70393.0,0.0002]
[1771138896405,0.07102978,70393.0,70392.0,0.34024]
[1771138897033,0.07102813,70395.0,70392.0,0.34024]
[1771138897595,0.07102813,70395.0,70392.0,0.34028338]
[1771138897971,0.07102813,70395.0,70392.0,0.34048338]
[1771138898376,0.07102813,70395.0,70392.0,0.00024338]
[1771138898895,0.07102912,70394.0,70392.0,0.00024338]
[1771138899657,0.07102978,70393.0,70392.0,0.00024338]
[1771138901167,0.07102912,70394.0,70392.0,0.00024338]
[1771138901373,0.07102978,70393.0,70392.0,0.00024338]
[1771138903786,0.0710318,70391.0,70390.0,0.34044]
[1771138903999,0.00010472,70391.0,70390.0,0.34044]
[1771138904768,0.07113652,70391.0,70390.0,0.34044]
[1771138906232,0.00010472,70391.0,70390.0,0.34044]
[1771138907812,0.07113652,70391.0,70390.0,0.34044]
[1771138908278,0.07113652,70391.0,70385.0,0.0002]
[1771138908279,0.07103382,70389.0,70385.0,0.0002]
[1771138908441,0.07103457,70389.0,70384.0,0.00104]
[1771138908622,0.07103412,70389.0,70384.0,0.00104]
[1771138908822,0.0710362,70387.0,70384.0,0.00104]
[1771138909443,0.07103317,70390.0,70384.0,0.00104]
[1771138909673,0.07103505,70388.0,70384.0,0.00104]
[1771138910272,0.0710362,70387.0,70384.0,0.00104]
[1771138910928,0.00010472,70391.0,70384.0,0.00104]
[1771138911134,0.07103442,70389.0,70384.0,0.00104]
[1771138911288,0.07113691,70391.0,70384.0,0.00104]
[1771138911788,0.07113691,70391.0,70390.0,0.0002]
[1771138913237,4e-05,70390.0,70384.0,0.07123832]
[1771138914276,0.07107287,70390.0,70384.0,0.0002]
[1771138916039,0.07103569,70388.0,70384.0,0.0002]
[1771138916206,0.07103549,70388.0,70384.0,0.0002]
[1771138916415,0.0710358,70389.0,70384.0,0.0002]
[1771138916811,4e-05,70390.0,70384.0,0.0002]
[1771138917017,0.07103442,70389.0,70384.0,0.0002]
[1771138917216,4e-05,70390.0,70384.0,0.0002]
[1771138917437,0.07107351,70390.0,70384.0,0.0002]
[1771138919330,0.07103414,70389.0,70384.0,0.0002]
[1771138919530,0.07103558,70388.0,70384.0,0.0002]
[1771138919998,0.07103786,70385.0,70384.0,0.0002]
[1771138920730,0.07103786,70385.0,70384.0,0.00124]
[1771138923094,0.07103786,70385.0,70377.0,0.0002]
[1771138923095,0.02300757,70384.0,70377.0,0.0002]
[1771138923278,0.09405025,70381.0,70377.0,0.0002]
[1771138923617,0.07104268,70381.0,70377.0,0.0002]
[1771138924399,0.07119018,70381.0,70377.0,0.0002]
[1771138924769,0.0001475,70381.0,70377.0,0.0002]
[1771138926677,0.07103488,70388.0,70380.0,0.07104269]
[1771138926833,0.07103661,70387.0,70380.0,0.07104269]
[1771138927160,0.0710736,70390.0,70381.0,0.02381629]
[1771138927301,0.07103586,70387.0,70382.0,0.02431629]
[1771138927501,0.07103586,70387.0,70383.0,0.02431629]
[1771138928165,0.0710352,70388.0,70383.0,0.02431629]
[1771138928388,0.07103543,70388.0,70383.0,0.02431629]
[1771138929130,0.07103591,70387.0,70383.0,0.02431629]
[1771138929333,4e-05,70390.0,70383.0,0.02431629]
[1771138929334,0.07107346,70390.0,70383.0,0.02431629]
[1771138929675,0.07103547,70388.0,70383.0,0.02431629]
[1771138929886,0.0710357,70389.0,70383.0,0.02431629]
[1771138930100,0.07103649,70387.0,70383.0,0.02431629]
[1771138931202,0.07103584,70387.0,70383.0,0.02431629]
[1771138933056,0.07103584,70387.0,70383.0,0.02451629]
[1771138934873,0.07103584,70387.0,70383.0,0.0002]
[1771138936001,0.07103689,70386.0,70383.0,0.0002]
[1771138936284,0.0710419,70381.0,70380.0,0.00012]
[1771138938915,0.07104119,70382.0,70380.0,0.00012]
[1771138942124,0.07087584,70382.0,70380.0,0.00012]
[1771138942568,0.07104031,70383.0,70380.0,0.00012]
[1771138943258,0.07104094,70382.0,70380.0,0.00012]
[1771138946725,0.07104031,70383.0,70380.0,0.00012]
[1771138947636,0.07103854,70385.0,70380.0,0.00012]
[1771138948202,0.07103983,70384.0,70380.0,0.00012]
[1771138948408,0.07104161,70382.0,70380.0,0.00012]
[1771138951529,0.07104161,70382.0,70380.0,0.00032]
[1771138951728,0.07144161,70382.0,70380.0,0.00032]
[1771138954403,0.0004,70382.0,70380.0,0.00032]
[1771138954927,0.07144095,70382.0,70380.0,0.00032]
[1771138955126,0.0710419,70381.0,70377.0,0.0002]
[1771138955336,0.07104394,70379.0,70376.0,0.0002]
[1771138955575,0.07104323,70380.0,70376.0,0.0002]
[1771138955802,0.09476099,70380.0,70376.0,0.0002]
[1771138956160,0.09476099,70380.0,70369.0,0.2842142]
[1771138956161,0.07104654,70377.0,70362.0,0.20984721]
[1771138956323,0.071047,70376.0,70370.0,0.07117284]
[1771138957333,0.071047,70376.0,70370.0,0.00012]
[1771138957759,0.07104821,70375.0,70370.0,0.00012]
[1771138957959,0.07104898,70374.0,70370.0,0.00012]
[1771138958880,0.07105088,70373.0,70366.0,0.0710552]
[1771138960287,0.07105088,70374.0,70367.0,0.07105541]
[1771138960651,0.07105088,70374.0,70370.0,0.0002]
[1771138961263,0.07104816,70375.0,70370.0,0.0002]
[1771138966590,0.07104816,70375.0,70370.0,0.02272529]
[1771138968914,0.07104898,70374.0,70370.0,0.02272529]
[1771138969530,0.07104898,70374.0,70366.0,0.02252529]
[1771138969752,0.07104824,70375.0,70368.0,0.07105444]
[1771138970110,0.07104824,70375.0,70367.0,0.07105542]
[1771138970111,0.07104915,70374.0,70366.0,0.09358228]
[1771138970338,0.07105114,70372.0,70366.0,0.02252529]
[1771138970650,0.07105114,70372.0,70366.0,0.09358203]
[1771138971293,0.07104915,70374.0,70367.0,0.07105591]
[1771138971596,0.07104999,70373.0,70367.0,0.07105591]
[1771138972007,0.07104936,70374.0,70367.0,0.07105591]
[1771138972187,0.07105023,70373.0,70367.0,0.07105591]
[1771138972607,0.07104936,70374.0,70367.0,0.07105591]
[1771138973051,0.07104936,70374.0,70368.0,0.07105495]
[1771138973267,0.07104936,70374.0,70367.0,0.07105559]
[1771138975729,0.07105023,70373.0,70367.0,0.07105559]
[1771138976085,0.07104928,70374.0,70367.0,0.07105559]
[1771138976356,0.07104928,70374.0,70368.0,0.07105498]
[1771138977492,0.07104938,70374.0,70367.0,0.07125528]
[1771138978791,0.0004,70376.0,70360.0,0.00012]
[1771138979038,0.0710574,70366.0,70360.0,0.07118292]
[1771138979239,0.32062643,70372.0,70363.0,0.07105931]
[1771138979240,0.07105376,70370.0,70363.0,0.07105931]
[1771138979441,0.07105199,70371.0,70365.0,0.25286746]
[1771138979614,0.07105199,70371.0,70365.0,0.18180963]
[1771138979915,0.07105199,70371.0,70366.0,0.02252529]
[1771138980099,0.0710536,70370.0,70366.0,0.02252529]
[1771138980300,0.0710536,70370.0,70366.0,0.02265554]
[1771138980510,0.07105239,70371.0,70367.0,0.20433492]
[1771138980882,0.07105345,70370.0,70367.0,0.20433492]